lending/lending_fUSD_20241228
["ID","MTS","AMOUNT","RATE_DAILY","PERIOD"]
[346912661,1735366251570,-360.725873,0.00012705,2]
[346912662,1735366251579,-1691.33656044,0.00012705,2]
[346912663,1735366251589,-335.24200581,0.00012711,2]
[346912664,1735366251598,-152.604418,0.00012711,2]
[346912665,1735366251607,-151.0,0.00012711,2]
[346912666,1735366251616,-151.0,0.00012711,2]
[346912667,1735366251625,-151.0,0.00012711,2]
[346912668,1735366251635,-360.725873,0.00012711,2]
[346912669,1735366251644,-360.725873,0.00012711,2]
[346912670,1735366251653,-150.0,0.00012716,2]
[346912671,1735366251662,-335.24200581,0.00012724,2]
[346912672,1735366251672,-150.0,0.00012725,2]
[346912673,1735366251682,-150.0,0.00012727,2]
[346912674,1735366251691,-150.0,0.00012729,2]
[346912675,1735366251700,-3075.32867499,0.00012734,2]
[346912676,1735366251709,-335.24200581,0.00012737,2]
[346912677,1735366251718,-325.02,0.00012741,2]
[346912678,1735366251727,-150.0,0.00012743,2]
[346912679,1735366251736,-151.0,0.00012749,2]
[346912680,1735366251745,-151.0,0.00012749,2]
[346912681,1735366251754,-516.02980558,0.00012749,2]
[346912682,1735366251764,-151.0,0.00012749,2]
[346912683,1735366251773,-151.0,0.00012749,2]
[346912684,1735366251782,-360.725873,0.00012749,2]
[346912685,1735366251791,-360.725881,0.00012749,2]
[346912686,1735366251800,-1199.76,0.00012749,2]
[346912687,1735366251809,-500.0,0.00012749,2]
[346912688,1735366251818,-500.0,0.00012749,2]
[346912689,1735366251827,-500.0,0.00012749,2]
[346912690,1735366251836,-673.75,0.00012749,2]
[346912691,1735366251846,-500.0,0.00012749,2]
[346912692,1735366251855,-3459.88025931,0.0001275,2]
[346912693,1735366251865,-335.24200581,0.0001275,2]
[346912694,1735366251874,-174.93691017,0.00012753,2]
[346912695,1735366251884,-263.252468,0.00012756,2]
[346912696,1735366251893,-151.0,0.00012756,2]
[346912697,1735366251902,-151.0,0.00012756,2]
[346912698,1735366251911,-152.078054,0.00012756,2]
[346912699,1735366251921,-151.0,0.00012756,2]
[346912700,1735366251931,-500.0,0.00012756,2]
[346912701,1735366251940,-500.0,0.00012756,2]
[346912702,1735366251950,-500.0,0.00012756,2]
[346912703,1735366251959,-500.0,0.00012756,2]
[346912704,1735366251968,-500.0,0.00012756,2]
[346912705,1735366251978,-500.0,0.00012756,2]
[346912706,1735366251991,-500.0,0.00012756,2]
[346912707,1735366252000,-750.98,0.00012756,2]
[346912708,1735366252010,-586.44,0.00012756,2]
[346912709,1735366252019,-500.0,0.00012756,2]
[346912710,1735366252028,-500.0,0.00012756,2]
[346912711,1735366252038,-500.0,0.00012756,2]
[346912712,1735366252047,-500.0,0.00012756,2]
[346912713,1735366252057,-500.0,0.00012756,2]
[346912714,1735366252068,-500.0,0.00012756,2]
[346912715,1735366252078,-500.0,0.00012756,2]
[346912716,1735366252087,-500.0,0.00012756,2]
[346912717,1735366252096,-500.0,0.00012756,2]
[346912718,1735366252106,-500.0,0.00012756,2]
[346912719,1735366252115,-500.0,0.00012756,2]
[346912720,1735366252125,-189.0,0.00012756,2]
[346912721,1735366252134,-500.0,0.00012756,2]
[346912722,1735366252144,-500.0,0.00012756,2]
[346912723,1735366252155,-199.92,0.00012756,2]
[346912724,1735366252166,-500.0,0.00012756,2]
[346912725,1735366252177,-150.0,0.00012756,2]
[346912726,1735366252187,-150.0,0.0001276,2]
[346912727,1735366252197,-335.24200581,0.00012763,2]
[346912728,1735366252207,-155.161044,0.00012766,3]
[346912729,1735366252218,-150.0,0.0001277,2]
[346912730,1735366252229,-1691.33656044,0.0001277,2]
[346912731,1735366252239,-335.24200581,0.00012776,2]
[346912732,1735366252247,-150.0,0.00012783,2]
[346912733,1735366252257,-150.0,0.00012783,2]
[346912734,1735366252267,-6582.26772636,0.00012787,2]
[346912735,1735366252276,-335.24200581,0.0001279,2]
[346912736,1735366252286,-150.0,0.00012797,2]
[346912737,1735366252295,-150.0,0.00012799,2]
[346912738,1735366252304,-66350.38914136,0.000128,2]
[346912739,1735366252314,-669.06283055,0.000128,2]
[346912740,1735366252324,-1307251.840503,0.000128,2]
[346912741,1735366252335,-202.0,0.000128,2]
[346912742,1735366252345,-202.0,0.000128,2]
[346912743,1735366252355,-202.0,0.000128,2]
[346912744,1735366252366,-202.0,0.000128,2]
[346912745,1735366252376,-202.0,0.000128,2]
[346912746,1735366252386,-202.0,0.000128,2]
[346912747,1735366252396,-202.0,0.000128,2]
[346912748,1735366252407,-204.0,0.000128,2]
[346912749,1735366252418,-202.0,0.000128,2]
[346912750,1735366252429,-202.0,0.000128,2]
[346912751,1735366252439,-204.0,0.000128,2]
[346912752,1735366252449,-202.0,0.000128,2]
[346912753,1735366252460,-204.0,0.000128,2]
[346912754,1735366252469,-204.0,0.000128,2]
[346912755,1735366252479,-202.0,0.000128,2]
[346912756,1735366252489,-204.0,0.000128,2]
[346912757,1735366252500,-202.0,0.000128,2]
[346912758,1735366252510,-202.0,0.000128,2]
[346912759,1735366252520,-204.0,0.000128,2]
[346912760,1735366252529,-204.0,0.000128,2]
[346912761,1735366252539,-204.0,0.000128,2]
[346912762,1735366252548,-204.0,0.000128,2]
[346912763,1735366252558,-204.0,0.000128,2]
[346912764,1735366252567,-209.0,0.000128,2]
[346912765,1735366252576,-209.0,0.000128,2]
[346912766,1735366252586,-209.0,0.000128,2]
[346912767,1735366252596,-209.0,0.000128,2]
[346912768,1735366252606,-209.0,0.000128,2]
[346912769,1735366252616,-209.0,0.000128,2]
[346912770,1735366252625,-209.0,0.000128,2]
[346912771,1735366252635,-209.0,0.000128,2]
[346912772,1735366252644,-209.0,0.000128,2]
[346912773,1735366252654,-209.0,0.000128,2]
[346912774,1735366252664,-209.0,0.000128,2]
[346912775,1735366252673,-209.0,0.000128,2]
[346912776,1735366252684,-209.0,0.000128,2]
[346912777,1735366252694,-209.0,0.000128,2]
[346912778,1735366252703,-207.0,0.000128,2]
[346912779,1735366252713,-207.0,0.000128,2]
[346912780,1735366252723,-207.0,0.000128,2]
[346912781,1735366252733,-207.0,0.000128,2]
[346912782,1735366252743,-207.0,0.000128,2]
[346912783,1735366252752,-207.0,0.000128,2]
[346912784,1735366252762,-207.0,0.000128,2]
[346912785,1735366252771,-207.0,0.000128,2]
[346912786,1735366252780,-207.0,0.000128,2]
[346912787,1735366252790,-207.0,0.000128,2]
[346912788,1735366252799,-207.0,0.000128,2]
[346912789,1735366252809,-207.0,0.000128,2]
[346912790,1735366252818,-207.0,0.000128,2]
[346912791,1735366252828,-207.0,0.000128,2]
[346912792,1735366252837,-9481.56115738,0.000128,2]
[346912793,1735366252847,-1225.93,0.000128,2]
[346912794,1735366252857,-127761.79138629,0.000128,3]
[346912795,1735366252866,-335.24200581,0.00012803,2]
[346912796,1735366252876,-1000.0,0.00012807,2]
[346912797,1735366252885,-150.0,0.0001281,2]
[346912798,1735366252895,-335.24200581,0.00012816,2]
[346912799,1735366252904,-3075.32867499,0.00012817,2]
[346912800,1735366252914,-150.0,0.00012817,2]
[346912801,1735366252925,-150.0,0.00012824,2]
[346912802,1735366252934,-174.93691017,0.00012827,2]
[346912803,1735366252944,-335.24200581,0.00012829,2]
[346912804,1735366252954,-205.0,0.0001283,2]
[346912805,1735366252963,-209.0,0.0001283,2]
[346912806,1735366252973,-207.0,0.0001283,2]
[346912807,1735366252985,-1691.33656044,0.00012835,2]
[346912808,1735366252995,-150.0,0.00012838,2]
[346912809,1735366253004,-335.24200581,0.00012842,2]
[346912810,1735366253013,-150.0,0.00012851,2]
[346912811,1735366253023,-335.24200581,0.00012855,2]
[346912812,1735366253033,-150.0,0.00012865,2]
[346912813,1735366253042,-335.24200581,0.00012868,2]
[346912814,1735366253053,-150.0,0.00012873,2]
[346912815,1735366253065,-500.0,0.00012877,2]
[346912816,1735366253075,-150.0,0.00012878,2]
[346912817,1735366253085,-335.24200581,0.00012881,2]
[346912818,1735366253094,-22774.69751094,0.0001289,2]
[346912819,1735366253103,-107963.83849163,0.0001289,2]
[346912820,1735366253113,-22774.69751088,0.00012891,2]
[346912821,1735366253123,-150.0,0.00012892,2]
[346912822,1735366253132,-22774.69751088,0.00012892,2]
[346912823,1735366253142,-22774.69751088,0.00012893,2]
[346912824,1735366253153,-22774.69751088,0.00012894,2]
[346912825,1735366253162,-335.24200581,0.00012894,2]
[346912826,1735366253172,-22774.69751088,0.00012896,2]
[346912827,1735366253182,-22774.69751088,0.00012897,2]
[346912828,1735366253191,-500.0,0.00012897,2]
[346912829,1735366253201,-150.0,0.00012897,2]
[346912830,1735366253211,-500.0,0.00012897,2]
[346912831,1735366253220,-162.05127978,0.00012897,2]
[346912832,1735366253230,-150.0,0.00012897,2]
[346912833,1735366253239,-150.0,0.00012897,2]
[346912834,1735366253250,-150.0,0.00012897,2]
[346912835,1735366253259,-244.48467118,0.00012897,2]
[346912836,1735366253268,-500.0,0.00012897,2]
[346912837,1735366253278,-150.0,0.00012897,2]
[346912838,1735366253289,-150.0,0.00012897,2]
[346912839,1735366253298,-500.0,0.00012897,2]
[346912840,1735366253308,-500.0,0.00012897,2]
[346912841,1735366253318,-201.15338541,0.00012897,2]
[346912842,1735366253327,-500.0,0.00012897,2]
[346912843,1735366253337,-150.0,0.00012897,2]
[346912844,1735366253346,-1999.0,0.00012897,2]
[346912845,1735366253356,-22774.69751088,0.00012898,2]
[346912846,1735366253366,-22774.69751088,0.00012899,2]
[346912847,1735366253376,-1000.0,0.00012899,2]
[346912848,1735366253387,-1500.0,0.000129,2]
[346912849,1735366253399,-1500.0,0.000129,2]
[346912850,1735366253409,-1500.0,0.000129,2]
[346912851,1735366253419,-1500.0,0.000129,2]
[346912852,1735366253429,-1500.0,0.000129,2]
[346912853,1735366253438,-1500.0,0.000129,2]
[346912854,1735366253447,-1500.0,0.000129,2]
[346912855,1735366253457,-1500.0,0.000129,2]
[346912856,1735366253467,-1500.0,0.000129,2]
[346912857,1735366253477,-1946.28,0.000129,2]
[346912858,1735366253487,-4856.0563583,0.000129,2]
[346912859,1735366253497,-202.6,0.000129,2]
[346912860,1735366253507,-202.6,0.000129,2]
[346912861,1735366253517,-174.93691017,0.000129,2]
[346912862,1735366253527,-22774.69751088,0.000129,2]
[346912863,1735366253537,-150.4,0.000129,2]
[346912864,1735366253547,-1691.33656044,0.000129,2]
[346912865,1735366253556,-354.04930634,0.000129,2]
[346912866,1735366253567,-5989.02516037,0.000129,2]
[346912867,1735366253577,-21447.03498764,0.000129,2]
[346912868,1735366253587,-1309.58604117,0.000129,2]
[346912869,1735366253597,-3075.32867499,0.000129,2]
[346912870,1735366253607,-434.12268193,0.000129,2]
[346912871,1735366253616,-150.0,0.00012905,2]
[346912872,1735366253626,-335.24200581,0.00012908,2]
[346912873,1735366253635,-5800.0,0.00012911,2]
[346912874,1735366253645,-150.0,0.00012919,2]
[346912875,1735366253655,-5800.0,0.00012919,2]
[346912876,1735366253664,-335.24200581,0.00012921,2]
[346912877,1735366253673,-5800.0,0.00012927,2]
[346912878,1735366253684,-524.99,0.00012929,2]
[346912879,1735366253693,-493.2,0.00012929,2]
[346912880,1735366253703,-561.62,0.00012929,2]
[346912881,1735366253713,-500.0,0.00012929,2]
[346912882,1735366253724,-599.76,0.00012929,2]
[346912883,1735366253734,-500.0,0.00012929,2]
[346912884,1735366253745,-500.0,0.00012929,2]
[346912885,1735366253754,-408.8982165,0.00012929,2]
[346912886,1735366253764,-261.53425957,0.00012929,2]
[346912887,1735366253774,-500.0,0.00012929,2]
[346912888,1735366253783,-500.0,0.00012929,2]
[346912889,1735366253794,-500.0,0.00012929,2]
[346912890,1735366253806,-694.82,0.00012929,2]
[346912891,1735366253818,-512.31414895,0.00012929,2]
[346912892,1735366253828,-512.29823359,0.00012929,2]
[346912893,1735366253837,-496.69618615,0.00012929,2]
[346912894,1735366253847,-513.54663476,0.00012929,2]
[346912895,1735366253856,-511.43208948,0.00012929,2]
[346912896,1735366253867,-622.17179606,0.00012929,2]
[346912897,1735366253877,-272.05032281,0.00012929,2]
[346912898,1735366253887,-500.0,0.00012929,2]
[346912899,1735366253897,-500.0,0.00012929,2]
[346912900,1735366253906,-150.0,0.0001293,2]
[346912901,1735366253917,-150.0,0.00012932,2]
[346912902,1735366253927,-335.24200581,0.00012934,2]
[346912903,1735366253938,-5800.0,0.00012936,2]
[346912904,1735366253948,-5800.0,0.00012936,2]
[346912905,1735366253959,-5800.0,0.00012937,2]
[346912906,1735366253969,-500.0,0.00012937,2]
[346912907,1735366253980,-1685.34,0.00012937,2]
[346912908,1735366253994,-3463.972392,0.00012937,2]
[346912909,1735366254005,-2839.027431,0.00012937,2]
[346912910,1735366254014,-500.0,0.00012937,2]
[346912911,1735366254025,-834.58,0.00012937,2]
[346912912,1735366254036,-500.0,0.00012937,2]
[346912913,1735366254046,-500.0,0.00012937,2]
[346912914,1735366254240,-500.0,0.00012937,2]
[346912915,1735366254251,-500.0,0.00012937,2]
[346912916,1735366254260,-500.0,0.00012937,2]
[346912917,1735366254270,-500.0,0.00012937,2]
[346912918,1735366254279,-500.0,0.00012937,2]
[346912919,1735366254289,-500.0,0.00012937,2]
[346912920,1735366254298,-1122.81,0.00012937,2]
[346912921,1735366254307,-869.16,0.00012937,2]
[346912922,1735366254316,-500.0,0.00012937,2]
[346912923,1735366254326,-2337.58,0.00012937,2]
[346912924,1735366254335,-536.44,0.00012938,2]
[346912925,1735366254345,-876.4,0.00012938,2]
[346912926,1735366254354,-500.0,0.00012938,2]
[346912927,1735366254363,-500.0,0.00012938,2]
[346912928,1735366254373,-500.0,0.00012938,2]
[346912929,1735366254382,-500.0,0.00012938,2]
[346912930,1735366254391,-550.88,0.00012939,2]
[346912931,1735366254401,-500.0,0.00012939,2]
[346912932,1735366254410,-150.0,0.00012946,2]
[346912933,1735366254419,-335.24200581,0.00012947,2]
[346912934,1735366254429,-68859.53679249,0.0001295,2]
[346912935,1735366254438,-1600.0,0.00012959,2]
[346912936,1735366254448,-800.0,0.00012959,2]
[346912937,1735366254458,-150.0,0.00012959,2]
[346912938,1735366254467,-335.24200581,0.0001296,2]
[346912939,1735366254477,-1226.02,0.00012962,2]
[346912940,1735366254486,-500.0,0.00012962,2]
[346912941,1735366254498,-500.0,0.00012962,2]
[346912942,1735366254507,-1117.41,0.00012962,2]
[346912943,1735366254517,-500.0,0.00012962,2]
[346912944,1735366254527,-434.06883001,0.00012962,2]
[346912945,1735366254537,-500.0,0.00012962,2]
[346912946,1735366254548,-500.0,0.00012962,2]
[346912947,1735366254558,-585.09790294,0.00012962,2]
[346912948,1735366254568,-685.78,0.00012962,2]
[346912949,1735366254578,-500.0,0.00012962,2]
[346912950,1735366254588,-500.0,0.00012962,2]
[346912951,1735366254597,-710.82,0.00012962,2]
[346912952,1735366254607,-500.0,0.00012962,2]
[346912953,1735366254616,-500.0,0.00012962,2]
[346912954,1735366254625,-500.0,0.00012962,2]
[346912955,1735366254635,-500.0,0.00012962,2]
[346912956,1735366254644,-500.0,0.00012962,2]
[346912957,1735366254654,-500.0,0.00012962,2]
[346912958,1735366254663,-1960.38,0.00012962,2]
[346912959,1735366254672,-500.0,0.00012962,2]
[346912960,1735366254682,-500.0,0.00012962,2]
[346912961,1735366254691,-506.22,0.00012962,2]
[346912962,1735366254700,-700.0,0.0001297,2]
[346912963,1735366254710,-1002.53814969,0.0001297,2]
[346912964,1735366254719,-400.0,0.0001297,2]
[346912965,1735366254729,-600.90473964,0.0001297,2]
[346912966,1735366254738,-150.0,0.00012973,2]
[346912967,1735366254747,-335.24200581,0.00012973,2]
[346912968,1735366254756,-335.24200581,0.00012986,2]
[346912969,1735366254766,-187.62082147,0.00012986,2]
[346912970,1735366254775,-266.77166191,0.00012986,2]
[346912971,1735366254786,-171.71275813,0.00012986,2]
[346912972,1735366254796,-219.31500054,0.00012986,2]
[346912973,1735366254807,-237.00569445,0.00012986,2]
[346912974,1735366254816,-276.83591333,0.00012986,2]
[346912975,1735366254826,-276.4064148,0.00012986,2]
[346912976,1735366254836,-14874.11340128,0.00012988,2]
[346912977,1735366254845,-506.44,0.00012989,2]
[346912978,1735366254854,-10303.60136726,0.0001299,2]
[346912979,1735366254863,-52378.00417168,0.0001299,2]
[346912980,1735366254872,-3760.62860685,0.0001299,2]
[346912981,1735366254881,-1025.36665407,0.0001299,2]
[346912982,1735366254890,-7300.0,0.0001299,2]
[346912983,1735366254899,-68724.64082963,0.0001299,2]
[346912984,1735366255096,-3292.27565339,0.0001299,2]
[346912994,1735367153744,14039.44747003,6.94e-05,2]
[346912998,1735367301381,374.18746675,7.888e-05,2]
[346913011,1735367432084,-818.264965,9.8e-05,2]
[346913012,1735367432100,-1000.398,9.8e-05,2]
[346913013,1735367432111,-310.05771303,9.8e-05,2]
[346913014,1735367432181,-892.65525434,9.8e-05,2]
[346913015,1735367432258,-281.32560495,9.8e-05,2]
[346913016,1735367432272,-2074.6726,9.8e-05,2]
[346913017,1735367432417,-300.554284,9.8e-05,2]
[346913018,1735367432427,-380.54,9.859e-05,2]
[346913020,1735367432436,-213.83309764,0.0001,2]
[346913022,1735367432445,-208.62975311,0.00010137,2]
[346913023,1735367432458,-89.00024689,0.00010137,2]
[346913024,1735367432468,-5265.81418109,0.00011296,2]
[346913025,1735367432478,-182.64,0.00011532,2]
[346913026,1735367432488,-1000.0,0.00011539,2]
[346913027,1735367432497,-150.0,0.00011688,2]
[346913028,1735367432509,-150.0,0.00011715,2]
[346913030,1735367432520,-150.0,0.00011743,2]
[346913032,1735367432530,-150.0,0.00011771,2]
[346913034,1735367432539,-250.0,0.00011775,2]
[346913036,1735367432548,-250.0,0.00011792,2]
[346913038,1735367432559,-150.0,0.00011798,2]
[346913040,1735367432568,-443.19,0.00011805,2]
[346913042,1735367432577,-150.0,0.00011826,2]
[346913044,1735367432589,-150.0,0.00011853,2]
[346913046,1735367432598,-150.0,0.00011881,2]
[346913048,1735367432607,-150.0,0.00011909,2]
[346913050,1735367432616,-150.0,0.00011936,2]
[346913052,1735367432625,-150.0,0.00011964,2]
[346913054,1735367432635,-150.0,0.00011992,2]
[346913056,1735367432644,-150.0,0.00012019,2]
[346913057,1735367432655,-150.0,0.00012047,2]
[346913060,1735367432664,-150.0,0.00012074,2]
[346913061,1735367432674,-150.0,0.00012102,2]
[346913063,1735367432684,-380.54,0.00012123,2]
[346913065,1735367432694,-150.0,0.0001213,2]
[346913067,1735367432703,-1000.0,0.00012152,2]
[346913069,1735367432712,-150.0,0.00012157,2]
[346913071,1735367432722,-150.0,0.00012185,2]
[346913073,1735367432732,-1976.9894,0.0001221,2]
[346913075,1735367432741,-1321.7928,0.0001221,2]
[346913077,1735367432750,-150.0,0.00012213,2]
[346913080,1735367432760,-150.0,0.0001224,2]
[346913082,1735367432770,-150.0,0.00012268,2]
[346913083,1735367432779,-150.0,0.00012296,2]
[346913085,1735367432789,-150.0,0.00012323,2]
[346913087,1735367432798,-457.537,0.0001234,2]
[346913089,1735367432808,-150.0,0.00012351,2]
[346913091,1735367432818,-150.0,0.00012378,2]
[346913093,1735367432828,-150.0,0.00012406,2]
[346913095,1735367432838,-803.37,0.00012414,2]
[346913098,1735367432847,-500.0,0.00012414,2]
[346913100,1735367432857,-500.0,0.00012414,2]
[346913102,1735367432866,-527.12969109,0.00012414,2]
[346913103,1735367432875,-500.0,0.00012414,2]
[346913106,1735367432886,-150.0,0.00012434,2]
[346913108,1735367432895,-1898.0,0.00012437,2]
[346913109,1735367432904,-3770.0,0.00012437,2]
[346913111,1735367432914,-916.0,0.00012437,2]
[346913113,1735367432923,-817.0,0.00012437,2]
[346913115,1735367432931,-536.0,0.00012437,2]
[346913117,1735367432941,-320.808,0.00012437,2]
[346913119,1735367432950,-1973.542,0.00012437,2]
[346913121,1735367432960,-150.0,0.00012437,2]
[346913123,1735367432969,-1264.0,0.00012437,2]
[346913125,1735367432978,-1291.819,0.00012437,2]
[346913126,1735367432987,-636.0,0.00012437,2]
[346913127,1735367432997,-150.0,0.00012461,2]
[346913128,1735367433007,-150.0,0.00012489,2]
[346913129,1735367433016,-150.0,0.00012517,2]
[346913130,1735367433026,-150.0,0.00012544,2]
[346913131,1735367433035,-150.0,0.00012572,2]
[346913132,1735367433045,-150.0,0.00012599,2]
[346913133,1735367433055,-150.42,0.00012602,2]
[346913134,1735367433064,-2115.333,0.00012604,2]
[346913135,1735367433073,-169.36,0.00012604,2]
[346913136,1735367433082,-150.0,0.00012627,2]
[346913137,1735367433092,-150.42,0.00012652,2]
[346913138,1735367433102,-150.0,0.00012655,2]
[346913139,1735367433112,-150.284,0.00012662,2]
[346913140,1735367433121,-500.0,0.00012663,2]
[346913141,1735367433130,-500.0,0.00012663,2]
[346913142,1735367433140,-618.77,0.00012663,2]
[346913143,1735367433149,-500.0,0.00012663,2]
[346913144,1735367433159,-500.0,0.00012663,2]
[346913145,1735367433169,-510.1970818,0.00012663,2]
[346913146,1735367433178,-500.0,0.00012663,2]
[346913147,1735367433187,-500.0,0.00012663,2]
[346913148,1735367433197,-500.0,0.00012663,2]
[346913149,1735367433208,-500.0,0.00012663,2]
[346913150,1735367433218,-500.0,0.00012663,2]
[346913151,1735367433228,-500.0,0.00012663,2]
[346913152,1735367433238,-719.69,0.00012663,2]
[346913153,1735367433248,-538.59,0.00012663,2]
[346913154,1735367433258,-3224.65,0.00012663,2]
[346913155,1735367433268,-524.06,0.00012663,2]
[346913156,1735367433278,-500.0,0.00012663,2]
[346913157,1735367433288,-500.0,0.00012663,2]
[346913158,1735367433297,-9900.54046608,0.0001268,2]
[346913159,1735367433307,-150.0,0.00012682,2]
[346913160,1735367433317,-803.37,0.00012688,2]
[346913161,1735367433327,-500.0,0.00012688,2]
[346913162,1735367433336,-500.0,0.00012688,2]
[346913163,1735367433345,-500.0,0.00012688,2]
[346913164,1735367433355,-318.11678408,0.00012705,2]
[346913165,1735367433366,-150.0,0.0001271,2]
[346913166,1735367433376,-1087.4627444,0.0001273,2]
[346913167,1735367433386,-1005.25871287,0.0001273,2]
[346913168,1735367433396,-150.0,0.00012738,2]
[346913169,1735367433407,-500.0,0.00012748,2]
[346913170,1735367433417,-500.0,0.00012748,2]
[346913171,1735367433426,-500.0,0.00012748,2]
[346913172,1735367433435,-500.0,0.00012748,2]
[346913173,1735367433445,-500.0,0.00012748,2]
[346913174,1735367433455,-181.0,0.00012756,2]
[346913175,1735367433465,-150.0,0.00012765,2]
[346913176,1735367433475,-6435.3234461,0.00012767,2]
[346913177,1735367433486,-311.1777,0.00012789,2]
[346913178,1735367433495,-507.7984,0.0001279,2]
[346913179,1735367433505,-150.0,0.00012793,2]
[346913180,1735367433520,-5265.81418109,0.00012796,2]
[346913181,1735367433530,-1417.32,0.000128,2]
[346913182,1735367433541,-150.0,0.00012821,2]
[346913183,1735367433551,-150.0,0.00012848,2]
[346913184,1735367433561,-1339.1871,0.0001286,2]
[346913185,1735367433571,-150.0,0.00012876,2]
[346913186,1735367433581,-172.99036224,0.00012889,2]
[346913187,1735367433590,-6386.1895,0.00012889,2]
[346913188,1735367433600,-1000.0,0.00012889,2]
[346913189,1735367433610,-774.2702,0.0001289,2]
[346913190,1735367433620,-9509.3684,0.0001289,2]
[346913191,1735367433629,-3710.36191369,0.0001289,2]
[346913192,1735367433642,-1100.39538631,0.0001289,2]
[346913193,1735367433656,-1798.49536598,0.0001289,2]
[346913201,1735367438040,-511.13428476,0.00012414,2]
[346913202,1735367438050,-500.0,0.00012748,2]
[346913203,1735367438059,-1756.24684752,0.0001289,2]
[346913204,1735367438116,-1041.2249865,0.0001289,2]
[346913205,1735367438125,-172.99036219,0.00012891,2]
[346913206,1735367438135,-172.99036219,0.00012893,2]
[346913207,1735367438145,-172.99036219,0.00012896,2]
[346913208,1735367438155,-172.99036219,0.00012898,2]
[346913209,1735367438165,-159.69303879,0.00012899,2]
[346913210,1735367438174,-165.01883047,0.00012899,2]
[346913211,1735367438184,-159.69303877,0.000129,2]
[346913212,1735367438193,-150.0,0.000129,2]
[346913213,1735367438202,-202.6,0.000129,2]
[346913214,1735367438211,-159.69303877,0.000129,2]
[346913215,1735367438221,-172.99036219,0.000129,2]
[346913216,1735367438230,-365.0,0.000129,2]
[346913217,1735367438239,-1000.0,0.000129,2]
[346913218,1735367438249,-230.0,0.000129,2]
[346913219,1735367438258,-150.0,0.00012903,2]
[346913220,1735367438268,-150.67,0.00012915,2]
[346913221,1735367438278,-3962.97686123,0.00012917,2]
[346913222,1735367438293,-1264.43557993,0.00012917,2]
[346913223,1735367438304,-572.58755884,0.00012917,2]
[346913224,1735367438313,-5800.0,0.00012926,2]
[346913225,1735367438323,-150.0,0.00012931,2]
[346913226,1735367438332,-5800.0,0.00012934,2]
[346913227,1735367438341,-500.0,0.00012937,2]
[346913228,1735367438350,-618.77,0.00012937,2]
[346913229,1735367438359,-504.68,0.00012937,2]
[346913230,1735367438369,-500.0,0.00012937,2]
[346913231,1735367438378,-500.0,0.00012937,2]
[346913232,1735367438388,-500.0,0.00012937,2]
[346913233,1735367438397,-500.0,0.00012937,2]
[346913234,1735367438406,-500.0,0.00012937,2]
[346913235,1735367438416,-500.0,0.00012937,2]
[346913236,1735367438425,-500.0,0.00012937,2]
[346913237,1735367438435,-719.69,0.00012937,2]
[346913238,1735367438444,-3224.65,0.00012937,2]
[346913239,1735367438453,-191.86,0.00012937,2]
[346913240,1735367438463,-72.56872014,0.00012937,2]
[346913241,1735367438474,-427.43127986,0.00012937,2]